[Event "*** Titled Tuesday Blitz"]
[Site "Chess.com"]
[Date "2020.12.01"]
[Round "9"]
[White "YIYUKI"]
[Black "FearNoEvil12"]
[Result "0-1"]
[WhiteElo "2326"]
[BlackElo "2185"]
[TimeControl "180+1"]
[EndTime "11:43:56 PST"]
[Termination "FearNoEvil12 won by resignation"]

1. e4 {[%clk 0:03:00.9]} 1... a6 {[%clk 0:03:00]} 2. d4 {[%clk 0:03:00.1]} 2...
b5 {[%clk 0:03:00.5]} 3. Bd3 {[%clk 0:03:00.2]} 3... Bb7 {[%clk 0:03:00.9]} 4.
Qe2 {[%clk 0:03:00.5]} 4... e6 {[%clk 0:03:01.3]} 5. Nf3 {[%clk 0:03:00.4]} 5...
Nf6 {[%clk 0:03:01.6]} 6. c3 {[%clk 0:03:00.4]} 6... d6 {[%clk 0:03:02]} 7. Nbd2
{[%clk 0:03:00.3]} 7... Nbd7 {[%clk 0:03:02.5]} 8. O-O {[%clk 0:02:59.9]} 8...
h6 {[%clk 0:03:03]} 9. e5 {[%clk 0:02:57.7]} 9... Nd5 {[%clk 0:03:02.2]} 10. Ne4
{[%clk 0:02:54.2]} 10... g5 {[%clk 0:03:02.4]} 11. a4 {[%clk 0:02:43.2]} 11...
bxa4 {[%clk 0:02:59.5]} 12. exd6 {[%clk 0:02:41.3]} 12... cxd6 {[%clk
0:02:56.2]} 13. Rxa4 {[%clk 0:02:38.4]} 13... g4 {[%clk 0:02:55.2]} 14. Ne1
{[%clk 0:02:33]} 14... Rg8 {[%clk 0:02:52.7]} 15. Ra3 {[%clk 0:02:18.7]} 15...
h5 {[%clk 0:02:44.4]} 16. c4 {[%clk 0:02:15]} 16... N5f6 {[%clk 0:02:39.7]} 17.
d5 {[%clk 0:02:13.9]} 17... Nxe4 {[%clk 0:02:30.6]} 18. Bxe4 {[%clk 0:02:11.4]}
18... e5 {[%clk 0:02:30.1]} 19. f4 {[%clk 0:02:00.6]} 19... gxf3 {[%clk
0:02:28.1]} 20. Raxf3 {[%clk 0:01:59.9]} 20... f6 {[%clk 0:02:09.2]} 21. Rg3
{[%clk 0:01:39.8]} 21... Rxg3 {[%clk 0:02:06]} 22. Qxh5+ {[%clk 0:01:39.1]}
22... Ke7 {[%clk 0:02:01.3]} 23. hxg3 {[%clk 0:01:36.9]} 23... Qe8 {[%clk
0:01:59.1]} 24. Qg4 {[%clk 0:01:26.9]} 24... Qf7 {[%clk 0:01:55.1]} 25. Bg6
{[%clk 0:01:16.9]} 25... Qg7 {[%clk 0:01:54]} 26. Nf3 {[%clk 0:00:57.8]} 26...
Kd8 {[%clk 0:01:49.7]} 27. Nh4 {[%clk 0:00:57.7]} 27... Bc8 {[%clk 0:01:45.7]}
28. Nf5 {[%clk 0:00:56.3]} 28... Qg8 {[%clk 0:01:40.2]} 29. Bd2 {[%clk
0:00:51.3]} 29... a5 {[%clk 0:01:30.4]} 30. Qh5 {[%clk 0:00:51.1]} 30... Kc7
{[%clk 0:01:24]} 31. g4 {[%clk 0:00:46.2]} 31... Nc5 {[%clk 0:01:21.6]} 32. Nh6
{[%clk 0:00:41.4]} 32... Bxh6 {[%clk 0:01:19.6]} 33. Bxh6 {[%clk 0:00:41.2]}
33... Bd7 {[%clk 0:01:17.1]} 34. Rxf6 {[%clk 0:00:40.7]} 34... Rb8 {[%clk
0:01:15.2]} 35. Rf8 {[%clk 0:00:39.1]} 35... Rxf8 {[%clk 0:01:13.9]} 36. Bxf8
{[%clk 0:00:39.2]} 36... Qxf8 {[%clk 0:01:13.9]} 37. Bf5 {[%clk 0:00:36.3]}
37... Bxf5 {[%clk 0:01:11.8]} 38. gxf5 {[%clk 0:00:36.8]} 38... Nd7 {[%clk
0:01:07.1]} 39. g4 {[%clk 0:00:36.4]} 39... e4 {[%clk 0:01:04.8]} 40. Qh7 {[%clk
0:00:35.3]} 40... Qf6 {[%clk 0:01:03.7]} 41. Kg2 {[%clk 0:00:31.3]} 41... Qxb2+
{[%clk 0:01:02.6]} 42. Kh3 {[%clk 0:00:31.4]} 42... Qc3+ {[%clk 0:01:00.9]} 43.
Kh4 {[%clk 0:00:31.4]} 43... Qxc4 {[%clk 0:01:00.4]} 44. f6 {[%clk 0:00:30]}
44... Qf1 {[%clk 0:00:36.1]} 45. Kg5 {[%clk 0:00:29.3]} 45... e3 {[%clk
0:00:34.1]} 46. f7 {[%clk 0:00:23.2]} 46... e2 {[%clk 0:00:33]} 47. f8=Q {[%clk
0:00:18.8]} 47... Qxf8 {[%clk 0:00:30.8]} 48. Qc2+ {[%clk 0:00:18.8]} 48... Kd8
{[%clk 0:00:24.2]} 49. Qxe2 {[%clk 0:00:19.7]} 49... Qf6+ {[%clk 0:00:23.7]} 50.
Kh5 {[%clk 0:00:19.3]} 50... Qe5+ {[%clk 0:00:23.1]} 51. Qxe5 {[%clk 0:00:18]}
51... Nxe5 {[%clk 0:00:24]} 52. g5 {[%clk 0:00:17.7]} 52... a4 {[%clk
0:00:24.4]} 0-1

[Event "*** Titled Tuesday Blitz"]
[Site "Chess.com"]
[Date "2020.12.01"]
[Round "9"]
[White "TigrVShlyape"]
[Black "Jospem"]
[Result "1-0"]
[WhiteElo "2866"]
[BlackElo "2957"]
[TimeControl "180+1"]
[EndTime "11:43:57 PST"]
[Termination "TigrVShlyape won on time"]

1. d4 {[%clk 0:03:00.9]} 1... Nf6 {[%clk 0:03:00.4]} 2. Nf3 {[%clk 0:03:00.1]}
2... e6 {[%clk 0:03:00.9]} 3. Bf4 {[%clk 0:02:58.7]} 3... b6 {[%clk 0:03:01.5]}
4. e3 {[%clk 0:02:57.5]} 4... Bb7 {[%clk 0:03:02.2]} 5. a4 {[%clk 0:02:57.6]}
5... a6 {[%clk 0:03:00.7]} 6. Nbd2 {[%clk 0:02:56.4]} 6... Be7 {[%clk
0:03:00.9]} 7. h3 {[%clk 0:02:56.5]} 7... O-O {[%clk 0:03:01]} 8. Bd3 {[%clk
0:02:57]} 8... c5 {[%clk 0:02:59.7]} 9. O-O {[%clk 0:02:56.8]} 9... cxd4 {[%clk
0:02:59]} 10. exd4 {[%clk 0:02:56.5]} 10... d6 {[%clk 0:02:59.6]} 11. Bh2 {[%clk
0:02:56.3]} 11... Nbd7 {[%clk 0:02:59.7]} 12. Re1 {[%clk 0:02:56]} 12... Re8
{[%clk 0:02:59.5]} 13. c3 {[%clk 0:02:51.2]} 13... Bf8 {[%clk 0:02:59.6]} 14.
Nc4 {[%clk 0:02:49]} 14... Qc7 {[%clk 0:02:56.6]} 15. Nfd2 {[%clk 0:02:38.1]}
15... Bc6 {[%clk 0:02:43.1]} 16. Ne3 {[%clk 0:02:33.4]} 16... b5 {[%clk
0:02:23.8]} 17. b3 {[%clk 0:02:22.8]} 17... e5 {[%clk 0:02:12.2]} 18. axb5
{[%clk 0:02:04.2]} 18... axb5 {[%clk 0:02:11.9]} 19. Rxa8 {[%clk 0:02:03.9]}
19... Rxa8 {[%clk 0:02:12.6]} 20. Qc2 {[%clk 0:01:42.9]} 20... Qb7 {[%clk
0:02:01.4]} 21. Bf1 {[%clk 0:01:35.9]} 21... g6 {[%clk 0:01:52.5]} 22. Qd3
{[%clk 0:01:10.8]} 22... Ra2 {[%clk 0:01:33.2]} 23. Rd1 {[%clk 0:00:55.9]} 23...
Qa8 {[%clk 0:01:17.1]} 24. c4 {[%clk 0:00:50.7]} 24... bxc4 {[%clk 0:01:12.5]}
25. Nexc4 {[%clk 0:00:42.2]} 25... e4 {[%clk 0:00:53]} 26. Qc3 {[%clk
0:00:35.8]} 26... Nd5 {[%clk 0:00:44.8]} 27. Qg3 {[%clk 0:00:27.5]} 27... N7f6
{[%clk 0:00:39.6]} 28. Nxd6 {[%clk 0:00:22.7]} 28... e3 {[%clk 0:00:36.2]} 29.
fxe3 {[%clk 0:00:20]} 29... Bxd6 {[%clk 0:00:34.6]} 30. Qxd6 {[%clk 0:00:18.9]}
30... Nxe3 {[%clk 0:00:35.1]} 31. Qxf6 {[%clk 0:00:18.5]} 31... Nd5 {[%clk
0:00:13.7]} 32. Qg5 {[%clk 0:00:17.8]} 32... Nc3 {[%clk 0:00:07.7]} 33. Re1
{[%clk 0:00:17.3]} 33... Qa7 {[%clk 0:00:03.8]} 34. Be5 {[%clk 0:00:16.6]} 34...
Qd7 {[%clk 0:00:02.7]} 35. Qf6 {[%clk 0:00:15.1]} 35... Kf8 {[%clk 0:00:03.2]}
36. Qh8+ {[%clk 0:00:12.5]} 36... Ke7 {[%clk 0:00:02.9]} 37. Bf4+ {[%clk
0:00:12.4]} 1-0

[Event "*** Titled Tuesday Blitz"]
[Site "Chess.com"]
[Date "2020.12.01"]
[Round "9"]
[White "Chesswizard_2007"]
[Black "r31415"]
[Result "0-1"]
[WhiteElo "2673"]
[BlackElo "2504"]
[TimeControl "180+1"]
[EndTime "11:43:57 PST"]
[Termination "r31415 won on time"]

1. Nf3 {[%clk 0:02:53.9]} 1... Nf6 {[%clk 0:02:52.2]} 2. d4 {[%clk 0:02:52.8]}
2... g6 {[%clk 0:02:50.7]} 3. Nc3 {[%clk 0:02:51.7]} 3... Bg7 {[%clk 0:02:50.4]}
4. e4 {[%clk 0:02:50.2]} 4... d6 {[%clk 0:02:50.8]} 5. h3 {[%clk 0:02:48.5]}
5... O-O {[%clk 0:02:51]} 6. Be3 {[%clk 0:02:48.6]} 6... c6 {[%clk 0:02:51.3]}
7. Bd3 {[%clk 0:02:47.5]} 7... Qc7 {[%clk 0:02:50.3]} 8. O-O {[%clk 0:02:47.9]}
8... Nbd7 {[%clk 0:02:49.5]} 9. Qe2 {[%clk 0:02:47.9]} 9... b5 {[%clk 0:02:49]}
10. Rad1 {[%clk 0:02:48.3]} 10... Bb7 {[%clk 0:02:46.9]} 11. a3 {[%clk
0:02:48.3]} 11... e5 {[%clk 0:02:45]} 12. b4 {[%clk 0:02:37.3]} 12... a6 {[%clk
0:02:31.7]} 13. dxe5 {[%clk 0:02:26]} 13... Nxe5 {[%clk 0:02:23.7]} 14. Bf4
{[%clk 0:02:12.9]} 14... Nh5 {[%clk 0:02:19.7]} 15. Bxe5 {[%clk 0:02:02.4]}
15... dxe5 {[%clk 0:02:19.8]} 16. g3 {[%clk 0:01:45.9]} 16... c5 {[%clk
0:02:17.8]} 17. Nd5 {[%clk 0:01:16.9]} 17... Bxd5 {[%clk 0:02:16.1]} 18. exd5
{[%clk 0:01:17.8]} 18... c4 {[%clk 0:02:05.9]} 19. Be4 {[%clk 0:01:18]} 19...
Qd6 {[%clk 0:02:06.4]} 20. c3 {[%clk 0:01:16]} 20... f5 {[%clk 0:02:04.2]} 21.
Bc2 {[%clk 0:01:15]} 21... e4 {[%clk 0:01:56.1]} 22. Nd4 {[%clk 0:01:10.3]}
22... Nxg3 {[%clk 0:01:44.9]} 23. fxg3 {[%clk 0:01:05.5]} 23... Qxg3+ {[%clk
0:01:45.8]} 24. Qg2 {[%clk 0:01:05.7]} 24... Qxc3 {[%clk 0:01:45.2]} 25. Ne6
{[%clk 0:01:03.9]} 25... Rf7 {[%clk 0:01:19.7]} 26. d6 {[%clk 0:00:50.3]} 26...
Rd7 {[%clk 0:01:12]} 27. Nc5 {[%clk 0:00:39.7]} 27... Bd4+ {[%clk 0:01:10.4]}
28. Kh1 {[%clk 0:00:28.4]} 28... Rxd6 {[%clk 0:01:10.7]} 29. Bxe4 {[%clk
0:00:25.7]} 29... Rad8 {[%clk 0:00:56.4]} 30. Nb7 {[%clk 0:00:10.3]} 30... fxe4
{[%clk 0:00:56.2]} 31. Nxd8 {[%clk 0:00:10.4]} 31... Rxd8 {[%clk 0:00:55.6]} 32.
Qg4 {[%clk 0:00:11.1]} 32... Re8 {[%clk 0:00:49.9]} 33. Rde1 {[%clk 0:00:07.6]}
33... Bf2 {[%clk 0:00:30.6]} 34. Rd1 {[%clk 0:00:05.4]} 34... e3 {[%clk
0:00:25.5]} 35. Qd7 {[%clk 0:00:03.3]} 35... Qe5 {[%clk 0:00:21.1]} 36. Qd5+
{[%clk 0:00:01.7]} 36... Qxd5+ {[%clk 0:00:20.4]} 37. Rxd5 {[%clk 0:00:02.6]}
37... e2 {[%clk 0:00:20.8]} 38. Rb1 {[%clk 0:00:02.8]} 38... e1=Q+ {[%clk
0:00:17.2]} 39. Rxe1 {[%clk 0:00:03.4]} 39... Bxe1 {[%clk 0:00:16.2]} 40. Rd6
{[%clk 0:00:02.5]} 40... Rc8 {[%clk 0:00:14.3]} 0-1

[Event "*** Titled Tuesday Blitz"]
[Site "Chess.com"]
[Date "2020.12.01"]
[Round "9"]
[White "Vandros57"]
[Black "diamonds13"]
[Result "0-1"]
[WhiteElo "2164"]
[BlackElo "2336"]
[TimeControl "180+1"]
[EndTime "11:44:00 PST"]
[Termination "diamonds13 won on time"]

1. d4 {[%clk 0:03:00.9]} 1... Nf6 {[%clk 0:02:59.4]} 2. Nf3 {[%clk 0:02:59.5]}
2... e6 {[%clk 0:02:59.5]} 3. c4 {[%clk 0:02:57.8]} 3... b6 {[%clk 0:02:55.5]}
4. g3 {[%clk 0:02:54.8]} 4... Ba6 {[%clk 0:02:51.8]} 5. Qa4 {[%clk 0:02:50.6]}
5... c5 {[%clk 0:02:50.3]} 6. Bg2 {[%clk 0:02:48.4]} 6... Bb7 {[%clk 0:02:50.3]}
7. O-O {[%clk 0:02:46.1]} 7... cxd4 {[%clk 0:02:49.3]} 8. Nxd4 {[%clk
0:02:44.8]} 8... Bxg2 {[%clk 0:02:49.8]} 9. Kxg2 {[%clk 0:02:42.8]} 9... Qc8
{[%clk 0:02:50.3]} 10. f3 {[%clk 0:02:31]} 10... a6 {[%clk 0:02:48.5]} 11. Nc3
{[%clk 0:02:26.8]} 11... Bc5 {[%clk 0:02:47.1]} 12. Be3 {[%clk 0:02:22.8]} 12...
O-O {[%clk 0:02:46.2]} 13. Rfd1 {[%clk 0:02:20.3]} 13... Re8 {[%clk 0:02:17.4]}
14. Rac1 {[%clk 0:02:16.4]} 14... Qb7 {[%clk 0:02:15.6]} 15. Qc2 {[%clk
0:01:58.1]} 15... d5 {[%clk 0:02:10.9]} 16. cxd5 {[%clk 0:01:41.3]} 16... exd5
{[%clk 0:02:03.4]} 17. Bf2 {[%clk 0:01:38.8]} 17... Nbd7 {[%clk 0:01:56.2]} 18.
Nf5 {[%clk 0:01:34.1]} 18... Bxf2 {[%clk 0:01:46.9]} 19. Kxf2 {[%clk 0:01:33.1]}
19... Re6 {[%clk 0:01:23.7]} 20. Rd4 {[%clk 0:01:19.4]} 20... Rae8 {[%clk
0:01:22.8]} 21. Rh4 {[%clk 0:01:17.2]} 21... b5 {[%clk 0:01:19.5]} 22. a3 {[%clk
0:01:15.3]} 22... a5 {[%clk 0:01:09.8]} 23. b4 {[%clk 0:01:04.2]} 23... a4
{[%clk 0:01:06.4]} 24. Qd3 {[%clk 0:01:01]} 24... Ne5 {[%clk 0:00:49.9]} 25. Qd4
{[%clk 0:00:51.8]} 25... Ng6 {[%clk 0:00:45.7]} 26. Rh3 {[%clk 0:00:46.2]} 26...
Qc6 {[%clk 0:00:33.9]} 27. e3 {[%clk 0:00:37.6]} 27... Qc4 {[%clk 0:00:30.9]}
28. Ne2 {[%clk 0:00:32.2]} 28... Qa2 {[%clk 0:00:29.5]} 29. Qa1 {[%clk
0:00:22.6]} 29... Qd2 {[%clk 0:00:28.1]} 30. Qc3 {[%clk 0:00:20.2]} 30... Qxc3
{[%clk 0:00:27]} 31. Rxc3 {[%clk 0:00:19.5]} 31... Ne7 {[%clk 0:00:27.3]} 32.
Nxe7+ {[%clk 0:00:17.1]} 32... R6xe7 {[%clk 0:00:27.3]} 33. Rh4 {[%clk
0:00:17.3]} 33... g5 {[%clk 0:00:24.2]} 34. Rd4 {[%clk 0:00:16.6]} 34... g4
{[%clk 0:00:24.5]} 35. fxg4 {[%clk 0:00:11.6]} 35... Ne4+ {[%clk 0:00:24.4]} 36.
Kg2 {[%clk 0:00:06.5]} 36... Nxc3 {[%clk 0:00:22.8]} 37. Nxc3 {[%clk 0:00:06.5]}
37... Rxe3 {[%clk 0:00:22.5]} 38. Nxd5 {[%clk 0:00:06.4]} 38... Re2+ {[%clk
0:00:22.5]} 39. Kh3 {[%clk 0:00:06.2]} 39... R8e6 {[%clk 0:00:20.6]} 40. g5
{[%clk 0:00:02.6]} 40... h6 {[%clk 0:00:20.3]} 41. Nf6+ {[%clk 0:00:01]} 41...
Kg7 {[%clk 0:00:20.4]} 0-1

[Event "*** Titled Tuesday Blitz"]
[Site "Chess.com"]
[Date "2020.12.01"]
[Round "9"]
[White "Mambastik-Fantastic"]
[Black "Ajedrez_con_German"]
[Result "1-0"]
[WhiteElo "2337"]
[BlackElo "2449"]
[TimeControl "180+1"]
[EndTime "11:44:01 PST"]
[Termination "Mambastik-Fantastic won on time"]

1. e4 {[%clk 0:03:00.9]} 1... e5 {[%clk 0:02:56.6]} 2. Nf3 {[%clk 0:03:00.9]}
2... Nc6 {[%clk 0:02:55.7]} 3. Bb5 {[%clk 0:03:00.7]} 3... a6 {[%clk 0:02:54.3]}
4. Ba4 {[%clk 0:03:00.4]} 4... d6 {[%clk 0:02:53]} 5. O-O {[%clk 0:02:59.3]}
5... Bd7 {[%clk 0:02:23.2]} 6. d3 {[%clk 0:02:58.5]} 6... g6 {[%clk 0:02:14.4]}
7. c3 {[%clk 0:02:58.4]} 7... Bg7 {[%clk 0:02:13.7]} 8. Nbd2 {[%clk 0:02:58.7]}
8... Nge7 {[%clk 0:02:09.4]} 9. Re1 {[%clk 0:02:58.8]} 9... O-O {[%clk
0:02:09.4]} 10. Nf1 {[%clk 0:02:58.7]} 10... h6 {[%clk 0:02:05.5]} 11. h3 {[%clk
0:02:54.9]} 11... f5 {[%clk 0:02:02.9]} 12. Bb3+ {[%clk 0:02:54.1]} 12... Kh7
{[%clk 0:02:00.3]} 13. a4 {[%clk 0:02:52.9]} 13... f4 {[%clk 0:01:52.4]} 14. d4
{[%clk 0:02:49.6]} 14... g5 {[%clk 0:01:48]} 15. N1h2 {[%clk 0:02:44.2]} 15...
Ng6 {[%clk 0:01:43.1]} 16. Ng4 {[%clk 0:02:39.1]} 16... h5 {[%clk 0:01:32.5]}
17. Ngh2 {[%clk 0:02:32.2]} 17... g4 {[%clk 0:01:28.4]} 18. hxg4 {[%clk
0:02:23]} 18... hxg4 {[%clk 0:01:27.7]} 19. d5 {[%clk 0:02:22.5]} 19... Na5
{[%clk 0:01:15.5]} 20. Nd2 {[%clk 0:02:16.1]} 20... Nxb3 {[%clk 0:01:14.7]} 21.
Qxb3 {[%clk 0:02:07.4]} 21... Qh4 {[%clk 0:00:38]} 22. Qxb7 {[%clk 0:01:59.5]}
22... f3 {[%clk 0:00:35.7]} 23. Ndxf3 {[%clk 0:01:35.3]} 23... gxf3 {[%clk
0:00:34.6]} 24. Nxf3 {[%clk 0:01:30.9]} 24... Rxf3 {[%clk 0:00:34]} 25. gxf3
{[%clk 0:01:30.4]} 25... Nf4 {[%clk 0:00:23.3]} 26. Bxf4 {[%clk 0:01:28.1]}
26... Qxf4 {[%clk 0:00:21.9]} 27. Qxa8 {[%clk 0:01:14.6]} 27... Bh3 {[%clk
0:00:20.7]} 28. Qd8 {[%clk 0:01:08.5]} 28... Bf6 {[%clk 0:00:14.6]} 29. Qxf6
{[%clk 0:00:40]} 29... Qxf6 {[%clk 0:00:15]} 30. Kh2 {[%clk 0:00:40.6]} 30...
Qxf3 {[%clk 0:00:15.1]} 31. Rg1 {[%clk 0:00:37.8]} 31... Bg4 {[%clk 0:00:11.7]}
32. Rg2 {[%clk 0:00:30.2]} 32... Qf4+ {[%clk 0:00:12]} 33. Kg1 {[%clk
0:00:25.8]} 33... Bf3 {[%clk 0:00:12]} 34. Rg3 {[%clk 0:00:24.9]} 34... Bxe4
{[%clk 0:00:09.4]} 35. c4 {[%clk 0:00:19.5]} 35... Bf5 {[%clk 0:00:05.9]} 36.
Raa3 {[%clk 0:00:17]} 36... Qxc4 {[%clk 0:00:05.3]} 37. Rae3 {[%clk 0:00:14.1]}
1-0

[Event "*** Titled Tuesday Blitz"]
[Site "Chess.com"]
[Date "2020.12.01"]
[Round "9"]
[White "GMJustin"]
[Black "zala02"]
[Result "0-1"]
[WhiteElo "2274"]
[BlackElo "2175"]
[TimeControl "180+1"]
[EndTime "11:44:01 PST"]
[Termination "zala02 won on time"]

1. e4 {[%clk 0:02:57.2]} 1... c5 {[%clk 0:02:59.7]} 2. Nf3 {[%clk 0:02:56.5]}
2... Nc6 {[%clk 0:02:59.6]} 3. Bb5 {[%clk 0:02:55.7]} 3... g6 {[%clk 0:02:57.9]}
4. c3 {[%clk 0:02:55.2]} 4... Bg7 {[%clk 0:02:57.3]} 5. d4 {[%clk 0:02:52.7]}
5... d5 {[%clk 0:02:47.5]} 6. dxc5 {[%clk 0:02:36.4]} 6... Nf6 {[%clk
0:02:37.1]} 7. exd5 {[%clk 0:02:32]} 7... Nxd5 {[%clk 0:02:30]} 8. Bc4 {[%clk
0:02:18.4]} 8... Nc7 {[%clk 0:02:14.9]} 9. Qxd8+ {[%clk 0:02:15.8]} 9... Nxd8
{[%clk 0:02:15.8]} 10. b4 {[%clk 0:02:04.5]} 10... a5 {[%clk 0:02:10.2]} 11. b5
{[%clk 0:01:58.7]} 11... Be6 {[%clk 0:02:09.5]} 12. Be2 {[%clk 0:01:49.3]} 12...
Nd5 {[%clk 0:02:03.1]} 13. a4 {[%clk 0:01:39.3]} 13... O-O {[%clk 0:01:54.5]}
14. O-O {[%clk 0:01:03.7]} 14... Nxc3 {[%clk 0:01:44.4]} 15. Nxc3 {[%clk
0:00:58]} 15... Bxc3 {[%clk 0:01:45.3]} 16. Bh6 {[%clk 0:00:50.1]} 16... Bxa1
{[%clk 0:01:34.7]} 17. Bxf8 {[%clk 0:00:49.9]} 17... Bf6 {[%clk 0:01:35.4]} 18.
Bh6 {[%clk 0:00:48.2]} 18... Rc8 {[%clk 0:01:35.5]} 19. Rc1 {[%clk 0:00:45.2]}
19... Bb3 {[%clk 0:01:31.4]} 20. Bd1 {[%clk 0:00:35.9]} 20... Bxd1 {[%clk
0:01:30.3]} 21. Rxd1 {[%clk 0:00:36.2]} 21... Ne6 {[%clk 0:01:31]} 22. c6 {[%clk
0:00:26]} 22... bxc6 {[%clk 0:01:28.6]} 23. Rc1 {[%clk 0:00:25.4]} 23... c5
{[%clk 0:01:25.8]} 24. Bd2 {[%clk 0:00:19.5]} 24... Ra8 {[%clk 0:01:19.8]} 25.
Kf1 {[%clk 0:00:18.9]} 25... Kf8 {[%clk 0:01:12.5]} 26. Ke2 {[%clk 0:00:18.8]}
26... Ke8 {[%clk 0:01:12.9]} 27. Kd3 {[%clk 0:00:19]} 27... Kd7 {[%clk
0:01:13.4]} 28. Kc4 {[%clk 0:00:18.7]} 28... Kd6 {[%clk 0:01:11.3]} 29. Bc3
{[%clk 0:00:18.6]} 29... Bxc3 {[%clk 0:01:01.1]} 30. Rxc3 {[%clk 0:00:18.9]}
30... Nf4 {[%clk 0:00:55.5]} 31. g3 {[%clk 0:00:16.6]} 31... Nd5 {[%clk
0:00:51.9]} 32. Rd3 {[%clk 0:00:16.1]} 32... e6 {[%clk 0:00:52.3]} 33. Ng5
{[%clk 0:00:15.8]} 33... Ra7 {[%clk 0:00:46.2]} 34. Ne4+ {[%clk 0:00:15.6]}
34... Ke5 {[%clk 0:00:44.8]} 35. Nxc5 {[%clk 0:00:15]} 35... Rc7 {[%clk
0:00:44.8]} 36. b6 {[%clk 0:00:04.4]} 36... Nxb6+ {[%clk 0:00:41.9]} 37. Kb5
{[%clk 0:00:04.7]} 37... Nd5 {[%clk 0:00:37.2]} 38. f4+ {[%clk 0:00:04.5]} 38...
Kd6 {[%clk 0:00:35.8]} 39. Nb3 {[%clk 0:00:04.7]} 39... Rb7+ {[%clk 0:00:24.1]}
40. Kxa5 {[%clk 0:00:04.6]} 40... f6 {[%clk 0:00:24.5]} 41. Ka6 {[%clk
0:00:01.9]} 41... Rb4 {[%clk 0:00:23.6]} 0-1

[Event "*** Titled Tuesday Blitz"]
[Site "Chess.com"]
[Date "2020.12.01"]
[Round "9"]
[White "Vincent_Vega95"]
[Black "GianmarcoVaR"]
[Result "1-0"]
[WhiteElo "2766"]
[BlackElo "2655"]
[TimeControl "180+1"]
[EndTime "11:44:02 PST"]
[Termination "Vincent_Vega95 won on time"]

1. d4 {[%clk 0:03:00.9]} 1... Nf6 {[%clk 0:02:59.1]} 2. c4 {[%clk 0:03:01]} 2...
e6 {[%clk 0:02:57.2]} 3. Nc3 {[%clk 0:03:01.1]} 3... Bb4 {[%clk 0:02:56.9]} 4.
e3 {[%clk 0:03:01.5]} 4... O-O {[%clk 0:02:54.6]} 5. Ne2 {[%clk 0:03:02]} 5...
d5 {[%clk 0:02:54.4]} 6. a3 {[%clk 0:03:01.9]} 6... Bd6 {[%clk 0:02:53.3]} 7.
cxd5 {[%clk 0:03:02.3]} 7... exd5 {[%clk 0:02:52.7]} 8. g3 {[%clk 0:03:02.9]}
8... Re8 {[%clk 0:02:49.2]} 9. Bg2 {[%clk 0:03:03.5]} 9... a5 {[%clk 0:02:48]}
10. O-O {[%clk 0:03:00.7]} 10... Na6 {[%clk 0:02:42.8]} 11. b3 {[%clk
0:02:46.3]} 11... Bf8 {[%clk 0:02:33.3]} 12. Nf4 {[%clk 0:02:43.4]} 12... c6
{[%clk 0:02:26.2]} 13. Kh1 {[%clk 0:02:32.9]} 13... Nc7 {[%clk 0:02:14]} 14. f3
{[%clk 0:02:33]} 14... Ne6 {[%clk 0:02:14.3]} 15. Nxe6 {[%clk 0:02:18]} 15...
Bxe6 {[%clk 0:01:51.6]} 16. g4 {[%clk 0:02:01]} 16... c5 {[%clk 0:01:44.2]} 17.
Ne2 {[%clk 0:01:49]} 17... a4 {[%clk 0:01:34.2]} 18. dxc5 {[%clk 0:01:41.9]}
18... Bxc5 {[%clk 0:01:25.7]} 19. b4 {[%clk 0:01:41.1]} 19... Bb6 {[%clk
0:01:24.6]} 20. Nd4 {[%clk 0:01:41.3]} 20... Qd6 {[%clk 0:01:19.6]} 21. g5
{[%clk 0:01:36.6]} 21... Nd7 {[%clk 0:01:15.8]} 22. f4 {[%clk 0:01:37.1]} 22...
Nf8 {[%clk 0:01:14.5]} 23. f5 {[%clk 0:01:33.2]} 23... Bd7 {[%clk 0:01:14.8]}
24. Qf3 {[%clk 0:01:20.5]} 24... Rac8 {[%clk 0:01:11.3]} 25. Bb2 {[%clk
0:01:14.5]} 25... Re4 {[%clk 0:00:49.4]} 26. Qh3 {[%clk 0:00:59.1]} 26... Ree8
{[%clk 0:00:18.9]} 27. Rae1 {[%clk 0:00:58.1]} 27... Bxd4 {[%clk 0:00:15]} 28.
Bxd4 {[%clk 0:00:56.8]} 28... Rc2 {[%clk 0:00:15.6]} 29. Qf3 {[%clk 0:00:53.2]}
29... Bb5 {[%clk 0:00:12.4]} 30. Rf2 {[%clk 0:00:51.7]} 30... Rxf2 {[%clk
0:00:10.1]} 31. Qxf2 {[%clk 0:00:52.6]} 31... Bd3 {[%clk 0:00:10.7]} 32. Rc1
{[%clk 0:00:40.7]} 32... Qd7 {[%clk 0:00:08.9]} 33. Bh3 {[%clk 0:00:33.4]} 33...
Rc8 {[%clk 0:00:07.4]} 34. Rxc8 {[%clk 0:00:26.9]} 34... Qxc8 {[%clk 0:00:08.3]}
35. Kg2 {[%clk 0:00:26.5]} 35... Be4+ {[%clk 0:00:05.4]} 36. Kg3 {[%clk
0:00:26.5]} 36... Qc1 {[%clk 0:00:06]} 37. Kf4 {[%clk 0:00:18.6]} 37... Qxa3
{[%clk 0:00:04.8]} 38. Qd2 {[%clk 0:00:15]} 38... Qb3 {[%clk 0:00:03.5]} 39. Ba1
{[%clk 0:00:14.7]} 39... Qc4 {[%clk 0:00:00.9]} 40. Qd4 {[%clk 0:00:14]} 1-0